[Event "Early-Titled-Tuesday-Blitz-February-13-2024"]
[Site "Chess.com"]
[Date "2024.02.13"]
[Round "9"]
[White "SpeedofLight0"]
[Black "Antipov_Mikhail_Al"]
[Result "0-1"]
[WhiteElo "3057"]
[BlackElo "2964"]
[TimeControl "180+1"]
[EndTime "9:49:45 PST"]
[Termination "Antipov_Mikhail_Al won by resignation"]

1. d4 {[%clk 0:03:00.9]} 1... Nf6 {[%clk 0:02:59.8]} 2. Nc3 {[%clk 0:03:01]}
2... e6 {[%clk 0:03:00.4]} 3. e4 {[%clk 0:02:53.7]} 3... d5 {[%clk 0:03:00.7]}
4. e5 {[%clk 0:02:53.2]} 4... Nfd7 {[%clk 0:03:01.2]} 5. f4 {[%clk 0:02:53.4]}
5... c5 {[%clk 0:03:01.3]} 6. Nf3 {[%clk 0:02:54.1]} 6... Nc6 {[%clk 0:03:00.7]}
7. Be3 {[%clk 0:02:54.7]} 7... a6 {[%clk 0:02:59]} 8. Qd2 {[%clk 0:02:55.3]}
8... Be7 {[%clk 0:02:59.2]} 9. Bd3 {[%clk 0:02:47.3]} 9... Qc7 {[%clk
0:02:52.7]} 10. h4 {[%clk 0:02:40.5]} 10... h5 {[%clk 0:02:46.2]} 11. Qf2 {[%clk
0:02:33.2]} 11... c4 {[%clk 0:02:44.3]} 12. Be2 {[%clk 0:02:31.8]} 12... g6
{[%clk 0:02:44.3]} 13. Ng5 {[%clk 0:02:22.7]} 13... b5 {[%clk 0:02:34]} 14. g4
{[%clk 0:02:21.8]} 14... hxg4 {[%clk 0:02:24.4]} 15. Bxg4 {[%clk 0:02:22.7]}
15... Bxg5 {[%clk 0:02:20.7]} 16. fxg5 {[%clk 0:02:21]} 16... Ne7 {[%clk
0:02:21.3]} 17. h5 {[%clk 0:02:03.5]} 17... gxh5 {[%clk 0:01:55.1]} 18. Bxh5
{[%clk 0:02:04.4]} 18... Ng6 {[%clk 0:01:55.2]} 19. O-O-O {[%clk 0:02:00.9]}
19... Ndf8 {[%clk 0:01:50.9]} 20. Rdf1 {[%clk 0:01:50.4]} 20... Qe7 {[%clk
0:01:41.2]} 21. Bd2 {[%clk 0:01:29.6]} 21... Bd7 {[%clk 0:01:31]} 22. Nd1 {[%clk
0:00:59.8]} 22... a5 {[%clk 0:01:18.4]} 23. Ne3 {[%clk 0:00:57.5]} 23... b4
{[%clk 0:01:17.5]} 24. Ng4 {[%clk 0:00:49.8]} 24... Ra7 {[%clk 0:01:11]} 25. Nh6
{[%clk 0:00:39.7]} 25... Bb5 {[%clk 0:01:01.7]} 26. c3 {[%clk 0:00:33.6]} 26...
a4 {[%clk 0:00:59.7]} 27. cxb4 {[%clk 0:00:21.9]} 27... a3 {[%clk 0:00:51.3]}
28. Bc3 {[%clk 0:00:21.8]} 28... Qxg5+ {[%clk 0:00:46.8]} 29. Bd2 {[%clk
0:00:21.4]} 29... axb2+ {[%clk 0:00:44.1]} 30. Kb1 {[%clk 0:00:21.2]} 30... Qe7
{[%clk 0:00:34.4]} 31. Ng4 {[%clk 0:00:20.9]} 31... Ra3 {[%clk 0:00:29]} 32.
Kxb2 {[%clk 0:00:13.5]} 32... Rd3 {[%clk 0:00:15.9]} 33. Nf6+ {[%clk 0:00:11.5]}
33... Kd8 {[%clk 0:00:16.3]} 34. Bc3 {[%clk 0:00:12.4]} 34... Qa7 {[%clk
0:00:13]} 35. Qc2 {[%clk 0:00:07.2]} 35... Nxe5 {[%clk 0:00:08.5]} 36. Be2
{[%clk 0:00:04.5]} 36... Rxh1 {[%clk 0:00:07.7]} 37. Rxh1 {[%clk 0:00:05.4]}
37... Rxd4 {[%clk 0:00:05.5]} 38. Kb1 {[%clk 0:00:03.7]} 38... Ke7 {[%clk
0:00:05.7]} 39. Nh5 {[%clk 0:00:03]} 39... Nfd7 {[%clk 0:00:05.9]} 40. Ng3
{[%clk 0:00:02.4]} 40... Rf4 {[%clk 0:00:05.6]} 41. Qd2 {[%clk 0:00:02.2]} 41...
Rf2 {[%clk 0:00:05.7]} 42. Qg5+ {[%clk 0:00:02.1]} 42... Kd6 {[%clk 0:00:05.8]}
43. Rd1 {[%clk 0:00:02.1]} 43... Qa3 {[%clk 0:00:05.1]} 44. Ne4+ {[%clk
0:00:02.3]} 44... Kc6 {[%clk 0:00:05.5]} 45. Nxf2 {[%clk 0:00:02.1]} 45... Qxc3
{[%clk 0:00:06]} 46. Qd2 {[%clk 0:00:02.6]} 46... Qa3 {[%clk 0:00:05.7]} 47. Rc1
{[%clk 0:00:01.9]} 47... Nb6 {[%clk 0:00:06]} 48. Nd1 {[%clk 0:00:02.1]} 48...
Na4 {[%clk 0:00:06.1]} 49. Ka1 {[%clk 0:00:02.2]} 49... Kd6 {[%clk 0:00:04.7]}
50. Nc3 {[%clk 0:00:02.5]} 50... Nxc3 {[%clk 0:00:04.5]} 51. Qxc3 {[%clk
0:00:02.9]} 51... Qxc3+ {[%clk 0:00:05]} 52. Rxc3 {[%clk 0:00:03.8]} 52... Nc6
{[%clk 0:00:04.9]} 53. Bd1 {[%clk 0:00:03.4]} 53... Nxb4 {[%clk 0:00:04.6]} 54.
a4 {[%clk 0:00:03.9]} 54... Ba6 {[%clk 0:00:04]} 55. Kb2 {[%clk 0:00:03.7]}
55... f5 {[%clk 0:00:03.1]} 56. Rh3 {[%clk 0:00:03.9]} 56... d4 {[%clk
0:00:02.5]} 57. Rh8 {[%clk 0:00:03.6]} 57... c3+ {[%clk 0:00:02.4]} 58. Kb3
{[%clk 0:00:04.5]} 58... Nc6 {[%clk 0:00:01.8]} 59. Ra8 {[%clk 0:00:04.3]} 59...
Bb7 {[%clk 0:00:02.2]} 60. Rf8 {[%clk 0:00:03.3]} 60... Kc5 {[%clk 0:00:02.6]}
61. Rf7 {[%clk 0:00:03.1]} 61... Na5+ {[%clk 0:00:03.2]} 62. Kc2 {[%clk
0:00:03.3]} 62... Bd5 {[%clk 0:00:04.1]} 63. Be2 {[%clk 0:00:03.4]} 63... e5
{[%clk 0:00:04.2]} 64. Bd3 {[%clk 0:00:03.2]} 64... Bb3+ {[%clk 0:00:04.3]} 65.
Kc1 {[%clk 0:00:03.5]} 65... Bxf7 {[%clk 0:00:05.2]} 66. Bxf5 {[%clk 0:00:03.6]}
66... Bb3 {[%clk 0:00:05.4]} 67. Bd3 {[%clk 0:00:03.9]} 67... Bxa4 {[%clk
0:00:05.7]} 68. Bc2 {[%clk 0:00:04.6]} 68... Bxc2 {[%clk 0:00:05.8]} 69. Kxc2
{[%clk 0:00:05.5]} 69... Kc4 {[%clk 0:00:06.6]} 70. Kd1 {[%clk 0:00:06.2]} 70...
d3 {[%clk 0:00:07.5]} 71. Kc1 {[%clk 0:00:07]} 71... Nb3+ {[%clk 0:00:07.1]} 72.
Kd1 {[%clk 0:00:07.9]} 0-1

[Event "Early-Titled-Tuesday-Blitz-February-13-2024"]
[Site "Chess.com"]
[Date "2024.02.13"]
[Round "9"]
[White "MyDream003"]
[Black "TrahtarBelarus"]
[Result "0-1"]
[WhiteElo "2720"]
[BlackElo "2875"]
[TimeControl "180+1"]
[EndTime "9:49:46 PST"]
[Termination "TrahtarBelarus won by checkmate"]

1. Nf3 {[%clk 0:03:00.9]} 1... d5 {[%clk 0:02:55.3]} 2. b3 {[%clk 0:03:01.1]}
2... Bf5 {[%clk 0:02:53.6]} 3. Bb2 {[%clk 0:03:01.2]} 3... e6 {[%clk 0:02:53.4]}
4. g3 {[%clk 0:03:01.7]} 4... Nf6 {[%clk 0:02:52.9]} 5. Bg2 {[%clk 0:03:02.1]}
5... Be7 {[%clk 0:02:51]} 6. O-O {[%clk 0:03:01.7]} 6... O-O {[%clk 0:02:50.3]}
7. c4 {[%clk 0:03:02]} 7... h6 {[%clk 0:02:43.9]} 8. d3 {[%clk 0:03:02.2]} 8...
c6 {[%clk 0:02:43.3]} 9. Nbd2 {[%clk 0:03:01.9]} 9... Bh7 {[%clk 0:02:43.7]} 10.
a3 {[%clk 0:02:57.9]} 10... a5 {[%clk 0:02:43.6]} 11. Ra2 {[%clk 0:02:58.3]}
11... Nbd7 {[%clk 0:02:37.9]} 12. Qa1 {[%clk 0:02:58.4]} 12... Re8 {[%clk
0:02:37.9]} 13. Ne5 {[%clk 0:02:52.6]} 13... Bf8 {[%clk 0:02:24]} 14. Nxd7
{[%clk 0:02:49.7]} 14... Nxd7 {[%clk 0:02:22.6]} 15. Rc1 {[%clk 0:02:50]} 15...
Qb6 {[%clk 0:02:12.4]} 16. Bd4 {[%clk 0:02:45.9]} 16... c5 {[%clk 0:02:08.5]}
17. Bb2 {[%clk 0:02:44.7]} 17... d4 {[%clk 0:02:07.8]} 18. Rb1 {[%clk
0:02:35.1]} 18... Ne5 {[%clk 0:02:02]} 19. b4 {[%clk 0:02:16.8]} 19... axb4
{[%clk 0:01:54.5]} 20. axb4 {[%clk 0:02:17.7]} 20... Rxa2 {[%clk 0:01:54.4]} 21.
Qxa2 {[%clk 0:02:18.6]} 21... cxb4 {[%clk 0:01:20.2]} 22. Nb3 {[%clk 0:02:15.5]}
22... Nc6 {[%clk 0:01:20.2]} 23. Bxc6 {[%clk 0:02:13.4]} 23... bxc6 {[%clk
0:01:18.7]} 24. Bxd4 {[%clk 0:02:13.5]} 24... c5 {[%clk 0:01:18.7]} 25. Be3
{[%clk 0:02:13.2]} 25... e5 {[%clk 0:01:08.2]} 26. Qa4 {[%clk 0:02:02.1]} 26...
Rb8 {[%clk 0:00:45.3]} 27. Ra1 {[%clk 0:01:48]} 27... e4 {[%clk 0:00:31.8]} 28.
d4 {[%clk 0:01:47.8]} 28... cxd4 {[%clk 0:00:32.2]} 29. Bxd4 {[%clk 0:01:48.3]}
29... Qe6 {[%clk 0:00:31.4]} 30. Qa6 {[%clk 0:01:40.3]} 30... Bf5 {[%clk
0:00:25.8]} 31. Ra5 {[%clk 0:01:22.9]} 31... Qxa6 {[%clk 0:00:18]} 32. Rxa6
{[%clk 0:01:23.8]} 32... Be6 {[%clk 0:00:18.5]} 33. Nd2 {[%clk 0:00:56.5]} 33...
b3 {[%clk 0:00:18.6]} 34. Bb2 {[%clk 0:00:56.8]} 34... Bb4 {[%clk 0:00:15.3]}
35. Nxe4 {[%clk 0:00:53.7]} 35... Bxc4 {[%clk 0:00:13.6]} 36. Ra4 {[%clk
0:00:53.6]} 36... Bxe2 {[%clk 0:00:12.6]} 37. Kg2 {[%clk 0:00:47.8]} 37... Bf8
{[%clk 0:00:09.2]} 38. f3 {[%clk 0:00:45.7]} 38... Bb5 {[%clk 0:00:08.7]} 39.
Rd4 {[%clk 0:00:43.6]} 39... Bc6 {[%clk 0:00:08.4]} 40. Nc3 {[%clk 0:00:40.5]}
40... f6 {[%clk 0:00:06.5]} 41. Rc4 {[%clk 0:00:37.4]} 41... Be8 {[%clk
0:00:06.6]} 42. Re4 {[%clk 0:00:34.4]} 42... Bf7 {[%clk 0:00:07.1]} 43. Re2
{[%clk 0:00:32.2]} 43... Ra8 {[%clk 0:00:07.5]} 44. g4 {[%clk 0:00:31.9]} 44...
h5 {[%clk 0:00:07.4]} 45. h3 {[%clk 0:00:31.6]} 45... hxg4 {[%clk 0:00:07.8]}
46. hxg4 {[%clk 0:00:32.5]} 46... Rc8 {[%clk 0:00:07.9]} 47. Kg3 {[%clk
0:00:30.7]} 47... Bb4 {[%clk 0:00:08.1]} 48. Re3 {[%clk 0:00:30.5]} 48... Bd6+
{[%clk 0:00:08.4]} 49. Kg2 {[%clk 0:00:29.5]} 49... Bf4 {[%clk 0:00:08.7]} 50.
Rd3 {[%clk 0:00:28.5]} 50... Be5 {[%clk 0:00:09.1]} 51. Re3 {[%clk 0:00:19.5]}
51... Bg6 {[%clk 0:00:06.4]} 52. Kh3 {[%clk 0:00:13.6]} 52... Bd4 {[%clk
0:00:05.6]} 53. Nd5 {[%clk 0:00:13.4]} 53... Bxe3 {[%clk 0:00:03.8]} 54. Ne7+
{[%clk 0:00:13.9]} 54... Kf7 {[%clk 0:00:04.3]} 55. Nxc8 {[%clk 0:00:14.8]}
55... Bc5 {[%clk 0:00:04.8]} 56. f4 {[%clk 0:00:14.3]} 56... Be4 {[%clk
0:00:05.2]} 57. g5 {[%clk 0:00:11.7]} 57... fxg5 {[%clk 0:00:04.5]} 58. fxg5
{[%clk 0:00:12.6]} 58... Bf5+ {[%clk 0:00:04.8]} 59. Kg3 {[%clk 0:00:13]} 59...
Bxc8 {[%clk 0:00:05.7]} 60. Kf4 {[%clk 0:00:13.7]} 60... g6 {[%clk 0:00:05.9]}
61. Ke5 {[%clk 0:00:14.6]} 61... Be6 {[%clk 0:00:06.3]} 62. Kf4 {[%clk
0:00:14.3]} 62... Be7 {[%clk 0:00:06.6]} 63. Ke4 {[%clk 0:00:13.9]} 63... Bxg5
{[%clk 0:00:06.5]} 64. Kd4 {[%clk 0:00:13.5]} 64... Bf6+ {[%clk 0:00:07.4]} 65.
Ke3 {[%clk 0:00:13.6]} 65... Bxb2 {[%clk 0:00:08.3]} 66. Ke2 {[%clk 0:00:14.3]}
66... Bf6 {[%clk 0:00:09.2]} 67. Kd2 {[%clk 0:00:15.1]} 67... g5 {[%clk
0:00:10.1]} 68. Kc1 {[%clk 0:00:16]} 68... g4 {[%clk 0:00:11]} 69. Kb1 {[%clk
0:00:16.9]} 69... Be5 {[%clk 0:00:11.9]} 70. Kc1 {[%clk 0:00:17.7]} 70... g3
{[%clk 0:00:12.8]} 71. Kb1 {[%clk 0:00:18.6]} 71... Bd5 {[%clk 0:00:13.7]} 72.
Kc1 {[%clk 0:00:19.5]} 72... Ke6 {[%clk 0:00:14.6]} 73. Kb1 {[%clk 0:00:20.4]}
73... Bd4 {[%clk 0:00:15]} 74. Kc1 {[%clk 0:00:21.3]} 74... Be4 {[%clk
0:00:14.9]} 75. Kd1 {[%clk 0:00:19.6]} 75... b2 {[%clk 0:00:15.4]} 76. Ke1
{[%clk 0:00:20.5]} 76... g2 {[%clk 0:00:15.6]} 77. Kd2 {[%clk 0:00:20.5]} 77...
b1=R {[%clk 0:00:14.4]} 78. Ke2 {[%clk 0:00:21.4]} 78... g1=R {[%clk 0:00:13.5]}
79. Kd2 {[%clk 0:00:20.3]} 79... Rg2# {[%clk 0:00:13.8]} 0-1

[Event "Early-Titled-Tuesday-Blitz-February-13-2024"]
[Site "Chess.com"]
[Date "2024.02.13"]
[Round "9"]
[White "Vaibhavraut99"]
[Black "MatthewG-p4p"]
[Result "0-1"]
[WhiteElo "2685"]
[BlackElo "2829"]
[TimeControl "180+1"]
[EndTime "9:49:50 PST"]
[Termination "MatthewG-p4p won on time"]

1. c4 {[%clk 0:02:53.8]} 1... e6 {[%clk 0:02:54]} 2. Nf3 {[%clk 0:02:53]} 2...
d5 {[%clk 0:02:54.2]} 3. d4 {[%clk 0:02:53.2]} 3... c6 {[%clk 0:02:53.1]} 4. e3
{[%clk 0:02:51.6]} 4... f5 {[%clk 0:02:52.8]} 5. Nc3 {[%clk 0:02:49.5]} 5... Nf6
{[%clk 0:02:52.3]} 6. Be2 {[%clk 0:02:45.2]} 6... Bd6 {[%clk 0:02:52.4]} 7. O-O
{[%clk 0:02:45.3]} 7... Nbd7 {[%clk 0:02:52.6]} 8. c5 {[%clk 0:02:39.4]} 8...
Bc7 {[%clk 0:02:51.8]} 9. b4 {[%clk 0:02:40]} 9... a6 {[%clk 0:02:50.7]} 10. a4
{[%clk 0:02:40]} 10... O-O {[%clk 0:02:50.8]} 11. Bb2 {[%clk 0:02:40.4]} 11...
e5 {[%clk 0:02:29.9]} 12. dxe5 {[%clk 0:02:36.4]} 12... Nxe5 {[%clk 0:02:29.9]}
13. b5 {[%clk 0:02:22.4]} 13... axb5 {[%clk 0:02:25.1]} 14. axb5 {[%clk
0:02:23.3]} 14... Rxa1 {[%clk 0:02:25.8]} 15. Qxa1 {[%clk 0:02:19.9]} 15... Nfg4
{[%clk 0:02:17.9]} 16. Nxe5 {[%clk 0:01:55.2]} 16... Nxe5 {[%clk 0:01:43.4]} 17.
b6 {[%clk 0:01:41.9]} 17... Bb8 {[%clk 0:01:25]} 18. Qa8 {[%clk 0:01:41.8]}
18... Nd7 {[%clk 0:01:25.1]} 19. Bf3 {[%clk 0:01:26.2]} 19... Qh4 {[%clk
0:01:16.1]} 20. g3 {[%clk 0:01:21.3]} 20... Qb4 {[%clk 0:01:15.8]} 21. Qa2
{[%clk 0:01:07.5]} 21... Qxc5 {[%clk 0:01:09.2]} 22. Nxd5 {[%clk 0:00:59.8]}
22... cxd5 {[%clk 0:01:06.3]} 23. Ba3 {[%clk 0:01:00]} 23... Qxb6 {[%clk
0:00:39.2]} 24. Bxd5+ {[%clk 0:00:18.8]} 24... Kh8 {[%clk 0:00:33.7]} 25. Bxf8
{[%clk 0:00:19.1]} 25... Nxf8 {[%clk 0:00:34.6]} 26. Rc1 {[%clk 0:00:17.9]}
26... Bd7 {[%clk 0:00:34.1]} 27. Rb1 {[%clk 0:00:09.7]} 27... Qc5 {[%clk
0:00:23.1]} 28. Rxb7 {[%clk 0:00:08.4]} 28... Be5 {[%clk 0:00:22]} 29. Qa8
{[%clk 0:00:04.5]} 29... Bc8 {[%clk 0:00:15.5]} 30. Rf7 {[%clk 0:00:02.4]} 30...
h6 {[%clk 0:00:10.8]} 31. Ra7 {[%clk 0:00:02.4]} 31... Kh7 {[%clk 0:00:09.5]}
32. Ra5 {[%clk 0:00:02.3]} 32... Qc1+ {[%clk 0:00:09.5]} 33. Kg2 {[%clk
0:00:02.9]} 33... Ng6 {[%clk 0:00:09.4]} 34. Qc6 {[%clk 0:00:02.4]} 34... Qxc6
{[%clk 0:00:06.6]} 35. Bxc6 {[%clk 0:00:03.3]} 35... Bc7 {[%clk 0:00:07.3]} 36.
Rc5 {[%clk 0:00:02.8]} 36... Bd6 {[%clk 0:00:07.6]} 37. Rc1 {[%clk 0:00:02.6]}
37... Be6 {[%clk 0:00:07.6]} 38. h4 {[%clk 0:00:03]} 38... Ba3 {[%clk
0:00:07.9]} 39. Ra1 {[%clk 0:00:02.9]} 39... Bb2 {[%clk 0:00:08.2]} 40. Rb1
{[%clk 0:00:03]} 40... Bf6 {[%clk 0:00:08.2]} 41. Bb7 {[%clk 0:00:03.9]} 41...
Ne5 {[%clk 0:00:08.6]} 42. Rb6 {[%clk 0:00:03.9]} 42... Bc4 {[%clk 0:00:08.7]}
43. Rb1 {[%clk 0:00:04.2]} 43... Bd3 {[%clk 0:00:08.5]} 44. Rd1 {[%clk
0:00:04.7]} 44... Bb5 {[%clk 0:00:08.7]} 45. Rb1 {[%clk 0:00:05]} 45... Bd7
{[%clk 0:00:08.3]} 46. Rc1 {[%clk 0:00:05]} 46... Ba4 {[%clk 0:00:05.9]} 47. Bc8
{[%clk 0:00:04]} 47... Kg6 {[%clk 0:00:05.2]} 48. Bb7 {[%clk 0:00:04.4]} 48...
Nd3 {[%clk 0:00:05.5]} 49. Rf1 {[%clk 0:00:03.2]} 49... Bb5 {[%clk 0:00:05.4]}
50. Rb1 {[%clk 0:00:02.9]} 50... Bc4 {[%clk 0:00:05.8]} 51. Bf3 {[%clk 0:00:03]}
51... Bc3 {[%clk 0:00:04.8]} 52. h5+ {[%clk 0:00:03]} 52... Kh7 {[%clk
0:00:03.9]} 53. Rb7 {[%clk 0:00:02.8]} 53... Ne1+ {[%clk 0:00:04.3]} 54. Kh3
{[%clk 0:00:01.5]} 54... Nxf3 {[%clk 0:00:05.2]} 55. Rc7 {[%clk 0:00:02.1]}
55... Nd2 {[%clk 0:00:04]} 56. e4 {[%clk 0:00:02.4]} 56... fxe4 {[%clk
0:00:04.3]} 57. g4 {[%clk 0:00:03.1]} 57... Be6 {[%clk 0:00:04.6]} 58. Rc6
{[%clk 0:00:03]} 58... Bc4 {[%clk 0:00:03.5]} 59. g5 {[%clk 0:00:02.9]} 59...
hxg5 {[%clk 0:00:04.4]} 60. Kg4 {[%clk 0:00:03]} 60... Bf6 {[%clk 0:00:04.7]}
61. h6 {[%clk 0:00:03.1]} 61... Kxh6 {[%clk 0:00:04.6]} 62. Rc7 {[%clk
0:00:03.4]} 62... Nf3 {[%clk 0:00:04.5]} 63. Rc8 {[%clk 0:00:02.5]} 63... Be6+
{[%clk 0:00:04.4]} 64. Kg3 {[%clk 0:00:03.2]} 64... Be5+ {[%clk 0:00:04.9]} 0-1

[Event "Early-Titled-Tuesday-Blitz-February-13-2024"]
[Site "Chess.com"]
[Date "2024.02.13"]
[Round "9"]
[White "SimonKnightRivendell"]
[Black "Felix-Rose"]
[Result "0-1"]
[WhiteElo "2095"]
[BlackElo "2229"]
[TimeControl "180+1"]
[EndTime "9:49:58 PST"]
[Termination "Felix-Rose won on time"]

1. d4 {[%clk 0:02:57.8]} 1... d5 {[%clk 0:02:00.2]} 2. c4 {[%clk 0:02:56.1]}
2... e6 {[%clk 0:01:59.7]} 3. Nf3 {[%clk 0:02:55.3]} 3... Nf6 {[%clk 0:01:59.9]}
4. g3 {[%clk 0:02:55.2]} 4... dxc4 {[%clk 0:01:59.7]} 5. Nc3 {[%clk 0:02:53]}
5... a6 {[%clk 0:01:59.4]} 6. a4 {[%clk 0:02:51.9]} 6... Nc6 {[%clk 0:01:59.6]}
7. Bg2 {[%clk 0:02:51.8]} 7... Rb8 {[%clk 0:02:00]} 8. e4 {[%clk 0:02:47.5]}
8... Bb4 {[%clk 0:01:59.9]} 9. O-O {[%clk 0:02:45.2]} 9... Bxc3 {[%clk
0:01:58.5]} 10. bxc3 {[%clk 0:02:44]} 10... Nxe4 {[%clk 0:01:56.1]} 11. Qe2
{[%clk 0:02:40.8]} 11... Nxc3 {[%clk 0:01:35.3]} 12. Qxc4 {[%clk 0:02:40.5]}
12... Nd5 {[%clk 0:01:34.6]} 13. Ba3 {[%clk 0:02:40]} 13... Bd7 {[%clk
0:01:16.5]} 14. Rfe1 {[%clk 0:02:39.8]} 14... Nce7 {[%clk 0:01:05.2]} 15. Ne5
{[%clk 0:02:34]} 15... b5 {[%clk 0:00:47.4]} 16. Qc5 {[%clk 0:02:25.2]} 16... b4
{[%clk 0:00:39.8]} 17. Bxd5 {[%clk 0:02:19]} 17... Nxd5 {[%clk 0:00:22.5]} 18.
Bb2 {[%clk 0:02:07.3]} 18... Qe7 {[%clk 0:00:18.7]} 19. Nxd7 {[%clk 0:01:58.4]}
19... Qxd7 {[%clk 0:00:17.4]} 20. f4 {[%clk 0:01:49.8]} 20... Qd6 {[%clk
0:00:17.1]} 21. f5 {[%clk 0:01:45.5]} 21... Qxc5 {[%clk 0:00:16.3]} 22. dxc5
{[%clk 0:01:45.1]} 22... Kd7 {[%clk 0:00:14.2]} 23. Bxg7 {[%clk 0:01:43.3]}
23... Rhg8 {[%clk 0:00:14.3]} 24. fxe6+ {[%clk 0:01:41.8]} 24... fxe6 {[%clk
0:00:15.2]} 25. Be5 {[%clk 0:01:40.8]} 25... a5 {[%clk 0:00:14.3]} 26. Rac1
{[%clk 0:01:34.6]} 26... Kc6 {[%clk 0:00:14.7]} 27. Bd4 {[%clk 0:01:33.2]} 27...
Rbe8 {[%clk 0:00:15.3]} 28. Re2 {[%clk 0:01:30]} 28... Nf4 {[%clk 0:00:15.5]}
29. Re4 {[%clk 0:01:27.1]} 29... Nd3 {[%clk 0:00:12.2]} 30. Rc2 {[%clk
0:01:23.3]} 30... Kd5 {[%clk 0:00:10.9]} 31. Rce2 {[%clk 0:01:20.5]} 31... Nxc5
{[%clk 0:00:09]} 32. Bxc5 {[%clk 0:01:19.4]} 32... Kxc5 {[%clk 0:00:09.9]} 33.
Re5+ {[%clk 0:01:18.5]} 33... Kd6 {[%clk 0:00:09.2]} 34. Rxa5 {[%clk 0:01:18]}
34... Rb8 {[%clk 0:00:10]} 35. Ra6+ {[%clk 0:01:14.5]} 35... c6 {[%clk
0:00:08.9]} 36. Rc2 {[%clk 0:01:11.8]} 36... b3 {[%clk 0:00:09.2]} 37. Rcxc6+
{[%clk 0:01:10.2]} 37... Kd5 {[%clk 0:00:09.9]} 38. Rd6+ {[%clk 0:01:09.1]}
38... Kc5 {[%clk 0:00:10.4]} 39. Rac6+ {[%clk 0:01:08.2]} 39... Kb4 {[%clk
0:00:10.9]} 40. Rc1 {[%clk 0:01:06.7]} 40... Kxa4 {[%clk 0:00:11.2]} 41. Ra6+
{[%clk 0:00:58.6]} 41... Kb4 {[%clk 0:00:11.1]} 42. Kf2 {[%clk 0:00:56.8]} 42...
b2 {[%clk 0:00:11.3]} 43. Rb1 {[%clk 0:00:54.2]} 43... Kc3 {[%clk 0:00:11.7]}
44. Rc6+ {[%clk 0:00:53.5]} 44... Kd2 {[%clk 0:00:11.6]} 45. Kf3 {[%clk
0:00:48]} 45... Rgf8+ {[%clk 0:00:11.8]} 46. Ke4 {[%clk 0:00:46.9]} 46... Rf2
{[%clk 0:00:12.1]} 47. h4 {[%clk 0:00:38.1]} 47... Rb3 {[%clk 0:00:12.3]} 48.
Kd4 {[%clk 0:00:33.6]} 48... Rg2 {[%clk 0:00:09.2]} 49. Rxe6 {[%clk 0:00:26.5]}
49... Kc2 {[%clk 0:00:08.5]} 50. Ree1 {[%clk 0:00:25.9]} 50... Rgxg3 {[%clk
0:00:05.9]} 51. Kc4 {[%clk 0:00:23.9]} 51... Rgc3+ {[%clk 0:00:05.6]} 52. Kd4
{[%clk 0:00:23.8]} 52... Rd3+ {[%clk 0:00:05.9]} 53. Kc4 {[%clk 0:00:23.8]}
53... Rbc3+ {[%clk 0:00:05.7]} 54. Kb4 {[%clk 0:00:23.6]} 54... Rd4+ {[%clk
0:00:06.1]} 55. Kb5 {[%clk 0:00:22.3]} 55... Rb3+ {[%clk 0:00:06]} 56. Kc5
{[%clk 0:00:21]} 56... Rd2 {[%clk 0:00:05.7]} 57. Rh1 {[%clk 0:00:18.5]} 57...
Rg2 {[%clk 0:00:05.8]} 58. h5 {[%clk 0:00:17.8]} 58... Rc3+ {[%clk 0:00:05.1]}
59. Kb4 {[%clk 0:00:15.3]} 59... Rg4+ {[%clk 0:00:04.4]} 60. Kb5 {[%clk
0:00:14.4]} 60... Kb3 {[%clk 0:00:04.6]} 61. h6 {[%clk 0:00:12.3]} 61... Rg5+
{[%clk 0:00:04.3]} 62. Kb6 {[%clk 0:00:11.2]} 62... Rg6+ {[%clk 0:00:04.1]} 63.
Kb5 {[%clk 0:00:09.1]} 63... Rcc6 {[%clk 0:00:03.3]} 64. Rh2 {[%clk 0:00:06.2]}
64... Rb6+ {[%clk 0:00:02.6]} 65. Kc5 {[%clk 0:00:05.3]} 65... Ka2 {[%clk
0:00:03.2]} 0-1